Cogmind - Beta 13 @@@ ROGUE MODE // 2024.06.07 @ 16:07:59 Player: Dendrocnid Result: Destroyed by P-60 Hacker with Shock Rifle Performance ------------- Evolutions (0) 0 Regions Visited (4) 800 Robots Destroyed (15) 75 Value Destroyed (400) 400 Prototype IDs (3) 60 Alien Tech Used (0) 0 Bonus (11) 11 TOTAL SCORE: 1346 Bonus ------- High Alert Combat Kills 11 Cogmind --------- Core Integrity 0/250 Matter 68/300 Energy 109/125 System Corruption 1% Temperature Cool (60) Movement Treading (160) Location -9/Recycling Parts ------- > --- POWER (1) -------- Light Ion Engine > --- PROPULSION (2) --- Light Treads Light Treads > --- UTILITY (2) ------ Improved Heat Sink Small Storage Unit > --- WEAPON (2) ------- Beam Cannon Beam Cannon > --- INVENTORY (8) ---- Scrap Engine Improved Heat Sink Improved Heat Sink Assault Rifle Light Assault Rifle Grenade Launcher Peak State ------------ > --- POWER ------------ Light Nuclear Core > --- PROPULSION ------- Wheel Compact Wheel > --- UTILITY ---------- Improved Heat Sink Small Storage Unit > --- WEAPON ----------- Beam Cannon Light Assault Rifle > --- INVENTORY -------- Light Ion Engine Light Treads Light Treads Improved Heat Sink Improved Heat Sink Beam Cannon Assault Rifle Grenade Launcher [Rating: 12] Favorites ----------- Power Light Nuclear Core Engine Ion Engine Power Core Light Nuclear Core Propulsion Compact Wheel Treads Light Treads Wheel Compact Wheel Utility Small Storage Unit Device Improved Heat Sink Storage Small Storage Unit Weapon Beam Cannon Energy Cannon Beam Cannon Ballistic Gun Light Assault Rifle Launcher Grenade Launcher Build | -11 -10 -10 -10 -9 ------- Run | Yrd Mat Min Sub Rec Slots Evolved . | . . . . . Power . | . . . . . Propulsion . | . . . . . Utility . | . . . . . Weapon . | . . . . . Parts Attached 19 | 6 . 6 6 1 Power 3 | 1 . 1 1 . Engine 2 | 1 . . 1 . Core 1 | . . 1 . . Reactor . | . . . . . Propulsion 4 | 2 . . 2 . Treads 2 | . . . 2 . Leg . | . . . . . Wheel 2 | 2 . . . . Hover . | . . . . . Flight . | . . . . . Utility 3 | 1 . 2 . . Device 2 | . . 2 . . Storage 1 | 1 . . . . Processor . | . . . . . Hackware . | . . . . . Protection . | . . . . . Artifact . | . . . . . Weapon 9 | 2 . 3 3 1 Energy Gun . | . . . . . Energy Cannon 5 | . . 2 2 1 Ballistic Gun 2 | 2 . . . . Ballistic Cannon . | . . . . . Launcher 2 | . . 1 1 . Special Weapon . | . . . . . Impact Weapon . | . . . . . Slashing Weapon . | . . . . . Piercing Weapon . | . . . . . Special Melee Weapon . | . . . . . Unidentified Prototypes . | . . . . . Parts Lost 3 | . . . 3 . Power 1 | . . . 1 . Propulsion 2 | . . . 2 . Utility . | . . . . . Weapon . | . . . . . Highest Loss Streak 3 | . . . 3 . To Critical Strikes . | . . . . . Average Slot Usage (%) 96 | . 85 98 95 100 Engine 7 | . 14 3 5 14 Core 6 | . . 10 7 . Treads 7 | . . . 10 28 Wheel 20 | . 28 28 14 . Device 11 | . . 13 14 14 Storage 14 | . 14 14 14 14 Energy Cannon 11 | . . 9 20 14 Ballistic Gun 12 | . 28 17 . . Launcher 4 | . . . 8 13 Naked Turns . | . . . . . Heaviest Build 17 | 13 13 15 17 15 Greatest Support 40 | 26 26 26 40 40 Greatest Overweight (x) . | . . . . . Average Overweight (x) . | . . . . . Largest Inventory Capacity 8 | 8 8 8 8 8 Average Capacity 7 | 7 8 8 8 8 Most Carried 8 | 6 8 8 8 7 Average Carried 6 | 3 6 7 6 6 Final Capacity 8 | 8 8 8 8 8 Final Carried 8 | 6 8 8 5 7 Class Distribution -------------------- 100% | Mutant Dominant Class ---------------- Mutant | -10/Materials Mutant | -10/Mines Mutant | -10/Subcaves Mutant | -9/Recycling Resources | -11 -10 -10 -10 -9 ----------- Run | Yrd Mat Min Sub Rec Matter Collected 395 | 209 . 161 25 . Remotely . | . . . . . Salvage Created 336 | . . 270 10 56 Parts 22 | . . 13 4 5 Haulers Intercepted . | . . . . . Recyclers Shooed . | . . . . . Parts Field Recycled . | . . . . . Retrieved Matter . | . . . . . Parts Self-Destructed 4 | . . . 4 . Prevented . | . . . . . Kills | -11 -10 -10 -10 -9 ------- Run | Yrd Mat Min Sub Rec Combat Hostiles Destroyed 11 | . . 6 4 1 Guns 5 | . . 5 . . Cannons 2 | . . 1 . 1 AOE 4 | . . . 4 . Classes Destroyed 6 | . . 3 2 1 Builder 1 | . . 1 . . Tunneler 1 | . . 1 . . Turret 2 | . . . 2 . Swarmer 4 | . . . 4 . Grunt 6 | . . 6 . . Sentry 1 | . . . . 1 Best Kill Streak 4 | . . 2 4 1 Combat Bots Only 4 | . . 2 4 1 Max Kills in Single Turn 2 | . . 1 2 1 Gunslinging . | . . . . . Exploded 2 | . . . 2 . Melee . | . . . . . Uniques/NPCs Destroyed . | . . . . . Combat | -11 -10 -10 -10 -9 -------- Run | Yrd Mat Min Sub Rec Hostile Shots Fired 139 | . . 39 91 9 Missed 55 | . . 9 42 4 Damage Taken 815 | . . 386 353 76 Core 265 | . . 120 129 16 Absorbed by Shields . | . . . . . Core Remaining (%) 100 | 100 . . . . Volleys Fired 49 | . 1 29 16 3 Largest 2 | . 2 2 1 2 Hottest 120 | . 40 80 60 120 Shots Fired 79 | . 2 55 16 6 Gun 42 | . 2 40 . . Cannon 19 | . . 12 1 6 Launcher 18 | . . 3 15 . Special . | . . . . . Kinetic 42 | . 2 40 . . Thermal 19 | . . 12 1 6 Explosive 18 | . . 3 15 . Electromagnetic . | . . . . . Robot Hit Streak 24 | . . 24 3 5 Robot Miss Streak 2 | . 2 2 2 1 Penetration Max . | . . . . . Secondary Targets . | . . . . . Shots Hit Robots 54 | . . 41 8 5 Core Hits 30 | . . 17 11 2 Critical Kills . | . . . . . Critical Parts Destroyed . | . . . . . Critical Strikes . | . . . . . Melee Attacks . | . . . . . Impact . | . . . . . Slashing . | . . . . . Piercing . | . . . . . Sneak Attacks . | . . . . . Combat Hostiles . | . . . . . Follow-up Attacks . | . . . . . Damage Inflicted 1138 | . . 561 489 88 Guns 336 | . . 336 . . Cannons 229 | . . 123 18 88 Explosions 573 | . . 102 471 . Melee . | . . . . . Ramming . | . . . . . Kinetic 336 | . . 336 . . Thermal 229 | . . 123 18 88 Explosive 573 | . . 102 471 . Electromagnetic . | . . . . . Impact . | . . . . . Slashing . | . . . . . Piercing . | . . . . . Highest Corruption 1 | . . . . 1 Average Corruption 1 | . . . . 1 Corruption Purged . | . . . . . Corruption Blocked . | . . . . . Overload Shots . | . . . . . Overflow Damage 24 | . . . 24 . Projectiles . | . . . . . Explosions 24 | . . . 24 . Melee . | . . . . . Knockbacks . | . . . . . Impact . | . . . . . Kinetic . | . . . . . Secondary . | . . . . . Self-Inflicted Damage 22 | . . . 22 . Shots 1 | . . . 1 . Rammed . | . . . . . Targets Rammed . | . . . . . Kicked . | . . . . . Crushed . | . . . . . Highest Temperature 60 | . . 50 . 60 Average Temperature 18 | . . 15 . 35 Received Heat Transfer 492 | . . 228 246 18 Siege Activations . | . . . . . Robots Corrupted . | . . . . . Combat Hostiles . | . . . . . Parts Fried . | . . . . . Impact Corruptions . | . . . . . Robots Melted . | . . . . . Combat Hostiles . | . . . . . Parts Melted 1 | . . 1 . . Heat Transferred 481 | . . 259 37 185 Parts Sabotaged . | . . . . . Parts Stolen . | . . . . . Parts Stripped . | . . . . . Power Chain Reactions . | . . . . . Alert | -11 -10 -10 -10 -9 ------- Run | Yrd Mat Min Sub Rec Peak Influence 488 | . 4 151 . 488 Initial 450 | . . 1 . 450 Average 138 | . 2 82 . 459 Maximum Alert Level 2 | . . . . 2 Low Security (%) 79 | 100 100 100 . . Level 1 . | . . . . . Level 2 20 | . . . . 100 Level 3 . | . . . . . Level 4 . | . . . . . Level 5 . | . . . . . High Security . | . . . . . Max Security . | . . . . . Squads Dispatched 1 | . 1 . . . Investigation 1 | . 1 . . . Extermination . | . . . . . Reinforcement . | . . . . . Assault . | . . . . . Garrison . | . . . . . Intercept . | . . . . . Searches Triggered . | . . . . . Construction Impeded . | . . . . . Haulers Reinforced . | . . . . . Active Scanning Responses . | . . . . . Cargo Convoy Interrupts . | . . . . . Stealth | -11 -10 -10 -10 -9 --------- Run | Yrd Mat Min Sub Rec Distress Signals . | . . . . . Communications Jammed . | . . . . . Distress Signals . | . . . . . Times Spotted 52 | . 1 6 41 4 Peak Tracking Total 6 | . 1 2 6 4 Tactical Retreats 3 | . . . 3 . Traps | -11 -10 -10 -10 -9 ------- Run | Yrd Mat Min Sub Rec Traps Triggered 1 | . 1 . . . Indirectly . | . . . . . Trap Hack Attempts . | . . . . . Triggered . | . . . . . Disarmed . | . . . . . Reprogrammed . | . . . . . Reused . | . . . . . Traps Extracted . | . . . . . Installed . | . . . . . Triggered . | . . . . . Machines | -11 -10 -10 -10 -9 ---------- Run | Yrd Mat Min Sub Rec Machines Disabled 4 | . . . 4 . Max in Single Turn 3 | . . . 3 . Machines Repaired . | . . . . . Machines Dismantled . | . . . . . Machines Sabotaged . | . . . . . Overloaded Fab Kills . | . . . . . Hacking | -11 -10 -10 -10 -9 --------- Run | Yrd Mat Min Sub Rec Machines Accessed 5 | . 3 . . 2 Terminals 5 | . 3 . . 2 Fabricators . | . . . . . Repair Stations . | . . . . . Recycling Units . | . . . . . Scanalyzers . | . . . . . Garrison Access . | . . . . . Total Hacks 11 | . 7 . . 4 Successful 5 | . 3 . . 2 Failed 6 | . 4 . . 2 Catastrophic . | . . . . . Database Lockouts . | . . . . . Manual 6 | . 4 . . 2 Terminals 11 | . 7 . . 4 Fabricators . | . . . . . Repair Stations . | . . . . . Recycling Units . | . . . . . Scanalyzers . | . . . . . Garrison Access . | . . . . . Terminal Hacks 2 | . 1 . . 1 Prototype ID Bank 2 | . 1 . . 1 Fabricator Hacks . | . . . . . Repair Station Hacks . | . . . . . Recycling Unit Hacks . | . . . . . Scanalyzer . | . . . . . Garrison Access Hacks . | . . . . . Unauthorized Hacks 3 | . 2 . . 1 Terminals 3 | . 2 . . 1 Botnet 3 | . 2 . . 1 Fabricators . | . . . . . Repair Stations . | . . . . . Recycling Units . | . . . . . Scanalyzers . | . . . . . Garrison Access . | . . . . . Data Cores Recovered . | . . . . . Used . | . . . . . Hacking Detections 2 | . 1 . . 1 Full Trace Events . | . . . . . Feedback Events . | . . . . . Feedback Blocked . | . . . . . Robot Schematics Acquired . | . . . . . Robots Built . | . . . . . Authchips . | . . . . . Time . | . . . . . Total Robot Build Rating . | . . . . . Part Schematics Acquired . | . . . . . Parts Built . | . . . . . Authchips . | . . . . . Time . | . . . . . Total Part Build Rating . | . . . . . Parts Repaired . | . . . . . Time . | . . . . . Parts Recycled . | . . . . . Recycled Matter . | . . . . . Retrieved Matter . | . . . . . Retrieved Components . | . . . . . Parts Scanalyzed . | . . . . . Part Schematics Acquired . | . . . . . Parts Damaged . | . . . . . Bothacking | -11 -10 -10 -10 -9 ------------ Run | Yrd Mat Min Sub Rec Used RIF Installer . | . . . . . Robots Hacked . | . . . . . Non-combat . | . . . . . Combat . | . . . . . Robot Hacks Applied . | . . . . . Relay Couplers Released . | . . . . . Fabnet Peak Effective % . | . . . . . Robots Rewired . | . . . . . Allies Hacked . | . . . . . Hacks Repelled . | . . . . . Allies | -11 -10 -10 -10 -9 -------- Run | Yrd Mat Min Sub Rec Total Allies . | . . . . . Largest Group . | . . . . . Highest-Rated Group . | . . . . . Highest-Rated Ally . | . . . . . Total Orders . | . . . . . Ally Attacks . | . . . . . Total Damage . | . . . . . Kills . | . . . . . Allies Corrupted . | . . . . . Allies Melted . | . . . . . Intel | -11 -10 -10 -10 -9 ------- Run | Yrd Mat Min Sub Rec Robot Analysis Total . | . . . . . Derelict Logs Recovered 2 | . . 2 . . Drone Launches . | . . . . . Drone Recoveries . | . . . . . Exploration | -11 -10 -10 -10 -9 ------------- Run | Yrd Mat Min Sub Rec Turns Passed 1032 | 55 167 432 208 170 Spaces Moved 820 | 45 175 348 152 100 Core 1 | 1 . . . . Treads 147 | . . . 47 100 Legs . | . . . . . Wheels 672 | 44 175 348 105 . Hover . | . . . . . Flight . | . . . . . Fastest Speed 50 | 50 90 90 90 160 Average Speed 102 | 89 90 90 111 160 Slowest Speed 160 | 100 90 90 160 160 Overloaded Moves . | . . . . . Propulsion Burnouts . | . . . . . Robots Hopped . | . . . . . Cave-ins Triggered . | . . . . . Exploration Rate (%) 30 | 4 31 79 10 27 Regions Visited 4 Branch Regions 3 Pre-discovered Areas 2 | . . 2 . . Known Exits Taken 1 | . . 1 . . Unknown Exits Taken 3 | 1 1 . 1 . Scrap Searched 1 | . . 1 . . Spaces Dug . | . . . . . Terrain Destroyed 73 | . . 25 48 . Melee . | . . . . . Projectile . | . . . . . AOE 73 | . . 25 48 . Terrain Rammed . | . . . . . Walls Destroyed . | . . . . . Machines Disabled . | . . . . . Actions | -11 -10 -10 -10 -9 --------- Run | Yrd Mat Min Sub Rec Total 933 | 56 183 416 173 105 Wait 32 | . 4 28 . . Move 816 | 44 174 347 151 100 Hop . | . . . . . Pick Up 12 | 6 3 2 . 1 Fast Attach 7 | 6 . 1 . . Attach 3 | . . . 3 . Detach . | . . . . . Swap 9 | . . 5 3 1 Drop 5 | . 1 4 . . Fire 49 | . 1 29 16 3 Melee . | . . . . . Ram . | . . . . . Kick . | . . . . . Crush . | . . . . . Escape Stasis . | . . . . . Rewire . | . . . . . Trap . | . . . . . Miscellaneous . | . . . . . Route ------- -11/Scrapyard -10/Materials -10/Mines (discovered 2 exits: [*Mat] / *Sub) -10/Subcaves -9/Recycling History --------- Turn | Location | Event 15 | -11/Scrapyard | Discovered new exit (range 15) 56 | -11/Scrapyard | Entered Materials 152 | -10/Materials | Discovered new exit (range 16) 223 | -10/Materials | Entered Mines 261 | -10/Mines | Identified exit to Subcaves 314 | -10/Mines | Build established: Mutant 436 | -10/Mines | Discovered new exit (range 7) 517 | -10/Mines | Learned location of Storage (-9) 519 | -10/Mines | Learned location of Zion (-6) 655 | -10/Mines | Entered Subcaves 743 | -10/Subcaves | Core integrity fell below 50% 761 | -10/Subcaves | Discovered new exit (range 15) 766 | -10/Subcaves | Core integrity fell below 20% 800 | -10/Subcaves | Lost 3 parts (1p2n) 863 | -10/Subcaves | Entered Recycling 902 | -9/Recycling | Found Scrap Engine 1033 | -9/Recycling | Destroyed by P-60 Hacker with Shock Rifle Last Messages --------------- 00858_ IZ-AFV(u) builds Twisted Machinery. A mysterious object appears at your location! LOCATION=UNKNOWN GOAL=ESCAPE 00902_ Acquired Scrap Engine. 00933_ Connecting with Terminal... 00933_ Current location identified: Recycling >>Trojan(Botnet) Trojan loaded successfully. Testing... Terminal linked with 0 systems. Awaiting botnet instructions. 00989_ Connecting with Terminal... >>Prototypes Downloading prototype IDs... Enh. Autogun Adv. Beam Cannon 01027_ Y-45 Defender springs to life. 01029_ Processing Tank disabled. 01032_ Y-45 Defender destroyed. Map ----- +----------------------------------------------------+ | | | | | | | | | | | | | | | | | | | | | | | | | | | | | ??????????????????????????????????????????? | | ??????????????????????????????????????????? | | ??????????????????????????????????????????? | | ??????????????????##########??????????????? | | ?????????????????? #??????????????? | | ?????????????????? #??????????????? | | ????????????????# """ #??????????????? | | ????????????????# """ #??????????????? | | ????????????????# """ #??????????????? | | ????????????????# """ ####### #?? | | ????????????????# """ g/ #?? | | ????????????????# @ p#????????? | | ????????????????# *[ #????????? | | ????????????????# "" =!=br + !???? | | ????????????????# """ ####%##### ??? | | ?????????????#### """ r#???##??????? ]??? | | ?????????????# """ #?????????????????? | | ?????????????# """ #?????????????????? | | ?????????????# #?????????????????? | | ???????? #?????????????????? | | ???????????############/#######???????????? | | ?????????????????# #???????????? | | ?????????????????# #???????????? | | ?????????????????# #???????????? | | ?????????????????# #???????????? | | ?????????????????# #??#####????? | | ?????????????????# #### #????? | | ???????????????? / + T #????? | | ?????????????? # #### #????? | | ????????????? # #??## ##????? | | ?????????????# #?# #???# #?????? | | ?????????????# ??# #???# #?????? | | ?????????????????# #???# #?????? | | ?????????????????###+########+#???# #?????? | | ??????????????????????????????????# #?????? | | ??????????????????????????????????# #?????? | +----------------------------------------------------+ Best States ------------- Heat Dissipation 39 Energy Generation 14 Energy Capacity 250 Matter Stores 300 Matter Capacity 300 Sight Range 16 Terrain Scan Density 10 Evasion (%) 42 Recoil Reduction 2 Item Schematics ----------------- None Robot Schematics ------------------ None Fabricated ------------ Nothing Alien Tech Used ----------------- None Achievements -------------- None Challenges ------------ None Game ------ Seed TerrabombEtherialSheargun Manual? 0 Play Time 00:10:51 Cumulative 145.0 hours Start 2024.06.07 @ 15:23:53 End 2024.06.07 @ 16:07:59 Sessions 3 Manual Loads 0 Difficulty Rogue Special Mode None Game No. 223 Rogue 223 Adventurer 0 Explorer 0 Win Type - Total 1 Types 1/0/0/0/0/0/0/0/0 Lore% 30 Gallery% 51 Achievement% 44 Wizard Run 0 Options --------- Layout 2 ASCII 0 Keyboard 0 Movement Mouse Keybinds 0 Fullscreen 1 Font 24/Smallcaps Map View 50x44 Zoom Use 0% Tactical HUD 1 Map Filters NONE Filters NONE Steam 1 RUN: 04d07fa8-b8be-48a5-865a-bb61fe4235bb